fUST/lending_fUST_20240225
["ID","MTS","AMOUNT","RATE_DAILY","PERIOD"]
[315064033,1708800644572,-972.69,0.00019725,2]
[315064034,1708800644581,-500.0,0.00019726,2]
[315064035,1708800644590,-597.64,0.00019726,2]
[315064036,1708800644600,-1079.68,0.00019726,2]
[315064037,1708800644610,-6369.84,0.00019726,2]
[315064038,1708800644620,-719.51,0.00019726,2]
[315064039,1708800644629,-500.0,0.00019726,2]
[315064040,1708800644639,-500.0,0.00019726,2]
[315064041,1708800644649,-508.79,0.00019726,2]
[315064042,1708800644658,-500.0,0.00019726,2]
[315064043,1708800644667,-500.0,0.00019726,2]
[315064044,1708800644676,-615.07,0.00019726,2]
[315064045,1708800644687,-728.44,0.00019726,2]
[315064046,1708800644697,-500.0,0.00019726,2]
[315064047,1708800644706,-500.0,0.00019726,2]
[315064048,1708800644715,-736.18,0.00019726,2]
[315064049,1708800644725,-500.0,0.00019726,2]
[315064050,1708800644734,-3669.97,0.00019726,2]
[315064051,1708800644745,-500.0,0.00019726,2]
[315064052,1708800644754,-5846.78,0.00019726,2]
[315064053,1708800644763,-832.11,0.00019726,2]
[315064054,1708800644780,-1298.43,0.00019726,2]
[315064055,1708800644790,-7859.6,0.00019873,2]
[315064056,1708800644799,-1538.5,0.00019969,2]
[315064057,1708800644809,-1216.98,0.00019969,2]
[315064058,1708800644822,-1200.87,0.00019969,2]
[315064059,1708800644831,-1467.89,0.00019975,2]
[315064060,1708800644841,-819.25,0.00019975,2]
[315064061,1708800644852,-500.0,0.00019975,2]
[315064062,1708800644861,-244.57,0.00019975,2]
[315064063,1708800644871,-1457.43,0.00019975,2]
[315064064,1708800644880,-500.0,0.00019999,2]
[315064065,1708800644890,-500.0,0.00019999,2]
[315064066,1708800644900,-972.69,0.00019999,2]
[315064067,1708800644909,-557.64745766,0.0002,2]
[315064068,1708800644919,-597.64,0.0002,2]
[315064069,1708800644929,-1079.68,0.0002,2]
[315064070,1708800644939,-6369.84,0.0002,2]
[315064071,1708800644949,-719.51,0.0002,2]
[315064072,1708800644958,-500.0,0.0002,2]
[315064073,1708800644969,-508.79,0.0002,2]
[315064074,1708800644980,-500.0,0.0002,2]
[315064075,1708800644989,-500.0,0.0002,2]
[315064076,1708800645000,-615.07,0.0002,2]
[315064077,1708800645010,-728.44,0.0002,2]
[315064078,1708800645019,-500.0,0.0002,2]
[315064079,1708800645030,-500.0,0.0002,2]
[315064080,1708800645039,-736.18,0.0002,2]
[315064081,1708800645049,-294.39801914,0.0002,2]
[315064082,1708800645058,-3669.97,0.0002,2]
[315064083,1708800645067,-500.0,0.0002,2]
[315064084,1708800645077,-5846.78,0.0002,2]
[315064085,1708800645088,-832.11,0.0002,2]
[315064086,1708800645098,-1298.43,0.0002,2]
[315064087,1708800645107,-500.0,0.00020094,2]
[315064088,1708800645116,-500.0,0.00020094,2]
[315064089,1708800645127,-500.0,0.00020147,2]
[315064090,1708800645137,-500.0,0.00020147,2]
[315064091,1708800645146,-7859.6,0.00020147,2]
[315064092,1708800645156,-500.0,0.00020201,2]
[315064093,1708800645166,-1538.5,0.00020243,2]
[315064094,1708800645175,-1216.98,0.00020243,2]
[315064095,1708800645185,-1200.87,0.00020243,2]
[315064096,1708800645194,-1467.89,0.00020249,2]
[315064097,1708800645204,-819.25,0.00020249,2]
[315064098,1708800645213,-488.36,0.00020249,2]
[315064099,1708800645222,-1457.43,0.00020249,2]
[315064100,1708800645231,-500.0,0.00020254,2]
[315064101,1708800645241,-500.0,0.00020272,2]
[315064102,1708800645250,-425.95359977,0.00020272,2]
[315064103,1708800645259,-597.64,0.00020273,2]
[315064104,1708800645270,-1079.68,0.00020273,2]
[315064105,1708800645280,-972.69,0.00020273,2]
[315064106,1708800645289,-6369.84,0.00020273,2]
[315064107,1708800645299,-719.51,0.00020273,2]
[315064108,1708800645310,-500.0,0.00020273,2]
[315064109,1708800645320,-508.79,0.00020273,2]
[315064110,1708800645329,-380.60345438,0.00020273,2]
[315064111,1708800645338,-500.0,0.00020273,2]
[315064112,1708800645348,-615.07,0.00020273,2]
[315064113,1708800645357,-728.44,0.00020273,2]
[315064114,1708800645366,-500.0,0.00020273,2]
[315064115,1708800645377,-400.26781543,0.00020273,2]
[315064116,1708800645387,-736.18,0.00020273,2]
[315064118,1708800645397,-3669.97,0.00020273,2]
[315064119,1708800645406,-500.0,0.00020273,2]
[315064120,1708800645415,-5846.78,0.00020273,2]
[315064121,1708800645424,-832.11,0.00020273,2]
[315064122,1708800645434,-1298.43,0.00020273,2]
[315064123,1708800645443,-193.75080658,0.00020348,2]
[315064124,1708800645452,-840.53547359,0.00020351,2]
[315064125,1708800645461,-198.23363887,0.00020352,2]
[315064126,1708800645472,-49455.99276155,0.00020353,2]
[315064127,1708800645482,-50000.0,0.00020388,2]
[315064128,1708800645492,-7859.6,0.00020421,2]
[315064129,1708800645502,-50000.0,0.0002044,2]
[315064130,1708800645511,-50000.0,0.00020448,2]
[315064133,1708800645521,-50000.0,0.00020457,2]
[315064135,1708800645531,-50340.095102,0.00020486,2]
[315064137,1708800645540,-50000.0,0.00020492,2]
[315064138,1708800645549,-50000.0,0.00020492,2]
[315064140,1708800645558,-50000.0,0.00020492,2]
[315064141,1708800645567,-193.75080657,0.0002051,2]
[315064142,1708800645576,-1538.5,0.00020517,2]
[315064143,1708800645586,-1216.98,0.00020517,2]
[315064144,1708800645596,-1200.87,0.00020517,2]
[315064145,1708800645605,-500.0,0.00020523,2]
[315064146,1708800645614,-500.0,0.00020523,2]
[315064147,1708800645623,-701.74,0.00020523,2]
[315064148,1708800645632,-500.0,0.00020523,2]
[315064149,1708800645642,-500.0,0.00020523,2]
[315064150,1708800645652,-500.0,0.00020523,2]
[315064151,1708800645661,-500.0,0.00020523,2]
[315064152,1708800645672,-1404.72,0.00020523,2]
[315064153,1708800645681,-500.0,0.00020523,2]
[315064155,1708800645692,-500.0,0.00020523,2]
[315064157,1708800645701,-202.51176436,0.00020523,2]
[315064158,1708800645710,-500.0,0.00020523,2]
[315064160,1708800645720,-500.0,0.00020523,2]
[315064161,1708800645729,-1467.89,0.00020523,2]
[315064162,1708800645738,-819.25,0.00020523,2]
[315064163,1708800645748,-1457.43,0.00020523,2]
[315064164,1708800645758,-166.666666,0.00020524,2]
[315064165,1708800645767,-166.701823,0.00020545,2]
[315064166,1708800645787,-169.642876,0.00020545,2]
[315064167,1708800645796,-650.46,0.00020547,2]
[315064168,1708800645806,-500.0,0.00020547,2]
[315064169,1708800645815,-500.0,0.00020547,2]
[315064170,1708800645825,-500.0,0.00020547,2]
[315064171,1708800645835,-515.24,0.00020547,2]
[315064172,1708800645844,-500.0,0.00020547,2]
[315064173,1708800645853,-500.0,0.00020547,2]
[315064174,1708800645863,-811.09,0.00020547,2]
[315064175,1708800645872,-215.67076236,0.00020547,2]
[315064176,1708800645881,-6417.31,0.00020547,2]
[315064177,1708800645891,-2303.42,0.00020547,2]
[315064178,1708800645900,-597.64,0.00020547,2]
[315064179,1708800645910,-1079.68,0.00020547,2]
[315064180,1708800645919,-972.69,0.00020547,2]
[315064181,1708800645928,-6369.84,0.00020547,2]
[315064182,1708800645938,-719.51,0.00020547,2]
[315064183,1708800645947,-500.0,0.00020547,2]
[315064184,1708800645956,-508.79,0.00020547,2]
[315064185,1708800645965,-500.0,0.00020547,2]
[315064186,1708800645975,-615.07,0.00020547,2]
[315064187,1708800645985,-728.44,0.00020547,2]
[315064188,1708800645994,-500.0,0.00020547,2]
[315064189,1708800646003,-736.18,0.00020547,2]
[315064190,1708800646013,-3669.97,0.00020547,2]
[315064191,1708800646022,-500.0,0.00020547,2]
[315064192,1708800646031,-5846.78,0.00020547,2]
[315064193,1708800646040,-832.11,0.00020547,2]
[315064194,1708800646050,-1298.43,0.00020547,2]
[315064195,1708800646059,-50000.0,0.00020604,2]
[315064196,1708800646068,-50000.0,0.00020606,2]
[315064197,1708800646079,-193.75080657,0.00020672,2]
[315064198,1708800646088,-7859.6,0.00020695,2]
[315064199,1708800646098,-1538.5,0.00020791,2]
[315064200,1708800646107,-1216.98,0.00020791,2]
[315064201,1708800646116,-1200.87,0.00020791,2]
[315064202,1708800646126,-500.0,0.00020797,2]
[315064203,1708800646135,-500.0,0.00020797,2]
[315064204,1708800646145,-701.74,0.00020797,2]
[315064205,1708800646154,-500.0,0.00020797,2]
[315064206,1708800646163,-503.95786474,0.00020797,2]
[315064207,1708800646173,-500.0,0.00020797,2]
[315064208,1708800646184,-500.0,0.00020797,2]
[315064209,1708800646195,-1404.72,0.00020797,2]
[315064210,1708800646205,-500.0,0.00020797,2]
[315064211,1708800646215,-218.42275406,0.00020797,2]
[315064212,1708800646226,-500.0,0.00020797,2]
[315064213,1708800646235,-1467.89,0.00020797,2]
[315064214,1708800646244,-819.25,0.00020797,2]
[315064215,1708800646253,-1457.43,0.00020797,2]
[315064216,1708800646263,-650.46,0.00020821,2]
[315064217,1708800646276,-500.0,0.00020821,2]
[315064218,1708800646285,-500.0,0.00020821,2]
[315064219,1708800646295,-500.0,0.00020821,2]
[315064220,1708800646304,-515.24,0.00020821,2]
[315064221,1708800646315,-500.0,0.00020821,2]
[315064222,1708800646324,-500.0,0.00020821,2]
[315064223,1708800646334,-811.09,0.00020821,2]
[315064224,1708800646343,-6417.31,0.00020821,2]
[315064225,1708800646355,-2303.42,0.00020821,2]
[315064226,1708800646364,-597.64,0.00020821,2]
[315064227,1708800646374,-1079.68,0.00020821,2]
[315064228,1708800646383,-972.69,0.00020821,2]
[315064229,1708800646393,-6369.84,0.00020821,2]
[315064230,1708800646402,-719.51,0.00020821,2]
[315064231,1708800646411,-500.0,0.00020821,2]
[315064232,1708800646420,-508.79,0.00020821,2]
[315064233,1708800646429,-318.47,0.00020821,2]
[315064234,1708800646438,-615.07,0.00020821,2]
[315064235,1708800646448,-728.44,0.00020821,2]
[315064236,1708800646457,-500.0,0.00020821,2]
[315064237,1708800646466,-736.18,0.00020821,2]
[315064238,1708800646475,-3669.97,0.00020821,2]
[315064239,1708800646484,-500.0,0.00020821,2]
[315064240,1708800646493,-5846.78,0.00020821,2]
[315064241,1708800646502,-832.11,0.00020821,2]
[315064242,1708800646511,-1298.43,0.00020821,2]
[315064243,1708800646520,-193.75080657,0.00020833,2]
[315064244,1708800646530,-306.0,0.00020849,2]
[315064245,1708800646539,-153.0,0.00020849,2]
[315064246,1708800646548,-1862.95184529,0.00020925,2]
[315064247,1708800646557,-7859.6,0.00020969,2]
[315064248,1708800646566,-166.666666,0.00020973,2]
[315064249,1708800646576,-193.75080657,0.00020995,2]
[315064250,1708800646585,-5845.16924957,0.00021046,2]
[315064251,1708800646594,-1538.5,0.00021065,2]
[315064252,1708800646603,-1216.98,0.00021065,2]
[315064253,1708800646612,-1200.87,0.00021065,2]
[315064254,1708800646621,-500.0,0.00021071,2]
[315064255,1708800646630,-701.74,0.00021071,2]
[315064256,1708800646639,-500.0,0.00021071,2]
[315064257,1708800646649,-500.0,0.00021071,2]
[315064258,1708800646659,-630.45135169,0.00021071,2]
[315064259,1708800646667,-1404.72,0.00021071,2]
[315064260,1708800646677,-602.27404538,0.00021071,2]
[315064261,1708800646687,-500.0,0.00021071,2]
[315064262,1708800646698,-1467.89,0.00021071,2]
[315064263,1708800646706,-819.25,0.00021071,2]
[315064264,1708800646716,-1457.43,0.00021071,2]
[315064265,1708800646727,-650.46,0.00021095,2]
[315064266,1708800646736,-500.0,0.00021095,2]
[315064267,1708800646745,-620.50613827,0.00021095,2]
[315064268,1708800646755,-246.52151735,0.00021095,2]
[315064269,1708800646775,-515.24,0.00021095,2]
[315064270,1708800646785,-500.0,0.00021095,2]
[315064271,1708800646796,-153.94,0.00021095,2]
[315064272,1708800646805,-387.051633,0.00021095,2]
[315064273,1708800646814,-387.051633,0.00021095,2]
[315064274,1708800646823,-4010.133591,0.00021095,2]
[315064275,1708800646832,-811.09,0.00021095,2]
[315064276,1708800646842,-4010.133591,0.00021095,2]
[315064277,1708800646851,-6417.31,0.00021095,2]
[315064278,1708800646860,-2303.42,0.00021095,2]
[315064279,1708800646869,-597.64,0.00021095,2]
[315064280,1708800646879,-1079.68,0.00021095,2]
[315064281,1708800646887,-972.69,0.00021095,2]
[315064282,1708800646992,-6369.84,0.00021095,2]
[315064283,1708800647001,-719.51,0.00021095,2]
[315064284,1708800647011,-500.0,0.00021095,2]
[315064285,1708800647020,-508.79,0.00021095,2]
[315064286,1708800647029,-615.07,0.00021095,2]
[315064287,1708800647038,-728.44,0.00021095,2]
[315064288,1708800647047,-500.0,0.00021095,2]
[315064289,1708800647057,-736.18,0.00021095,2]
[315064290,1708800647066,-3669.97,0.00021095,2]
[315064291,1708800647076,-500.0,0.00021095,2]
[315064292,1708800647085,-5846.78,0.00021095,2]
[315064293,1708800647094,-832.11,0.00021095,2]
[315064294,1708800647104,-1298.43,0.00021095,2]
[315064295,1708800647114,-50000.0,0.00021128,2]
[315064296,1708800647123,-571.2516672,0.00021206,2]
[315064297,1708800647133,-1485.15123593,0.00021206,2]
[315064298,1708800647142,-752.65344435,0.00021206,2]
[315064299,1708800647152,-5000.0,0.0002122,2]
[315064300,1708800647162,-7859.6,0.00021243,2]
[315064301,1708800647171,-1538.5,0.00021339,2]
[315064302,1708800647181,-1216.98,0.00021339,2]
[315064303,1708800647192,-1200.87,0.00021339,2]
[315064304,1708800647201,-500.0,0.00021345,2]
[315064305,1708800647211,-701.74,0.00021345,2]
[315064306,1708800647221,-500.0,0.00021345,2]
[315064307,1708800647230,-500.0,0.00021345,2]
[315064308,1708800647240,-1404.72,0.00021345,2]
[315064309,1708800647249,-500.0,0.00021345,2]
[315064310,1708800647259,-1467.89,0.00021345,2]
[315064311,1708800647272,-819.25,0.00021345,2]
[315064312,1708800647281,-1457.43,0.00021345,2]
[315064313,1708800647292,-650.46,0.00021369,2]
[315064314,1708800647302,-500.0,0.00021369,2]
[315064315,1708800647313,-515.24,0.00021369,2]
[315064316,1708800647322,-500.0,0.00021369,2]
[315064317,1708800647332,-811.09,0.00021369,2]
[315064318,1708800647342,-6417.31,0.00021369,2]
[315064319,1708800647351,-2303.42,0.00021369,2]
[315064320,1708800647363,-597.64,0.00021369,2]
[315064321,1708800647372,-1079.68,0.00021369,2]
[315064322,1708800647383,-972.69,0.00021369,2]
[315064323,1708800647394,-6369.84,0.00021369,2]
[315064324,1708800647403,-719.51,0.00021369,2]
[315064325,1708800647413,-500.0,0.00021369,2]
[315064326,1708800647422,-508.79,0.00021369,2]
[315064327,1708800647432,-615.07,0.00021369,2]
[315064328,1708800647443,-728.44,0.00021369,2]
[315064329,1708800647452,-500.0,0.00021369,2]
[315064330,1708800647461,-736.18,0.00021369,2]
[315064331,1708800647471,-3669.97,0.00021369,2]
[315064332,1708800647481,-631.03387487,0.00021369,2]
[315064333,1708800647490,-5846.78,0.00021369,2]
[315064334,1708800647500,-832.11,0.00021369,2]
[315064335,1708800647509,-1298.43,0.00021369,2]
[315064336,1708800647519,-153.0,0.0002137,2]
[315064337,1708800647529,-5000.0,0.00021394,2]
[315064338,1708800647538,-153.0,0.00021397,2]
[315064339,1708800647548,-166.666666,0.00021422,2]
[315064340,1708800647560,-50000.0,0.00021427,2]
[315064341,1708800647569,-7859.6,0.00021517,2]
[315064342,1708800647578,-153.8214087,0.00021562,2]
[315064343,1708800647589,-5000.0,0.00021568,2]
[315064344,1708800647600,-169.642876,0.00021573,2]
[315064345,1708800647610,-300.0,0.00021578,2]
[315064346,1708800647621,-9748.14973265,0.0002159,2]
[315064347,1708800647632,-1538.5,0.00021613,2]
[315064348,1708800647642,-1216.98,0.00021613,2]
[315064349,1708800647652,-1200.87,0.00021613,2]
[315064350,1708800647664,-500.0,0.00021619,2]
[315064351,1708800647674,-701.74,0.00021619,2]
[315064352,1708800647685,-500.0,0.00021619,2]
[315064353,1708800647695,-500.0,0.00021619,2]
[315064354,1708800647706,-1404.72,0.00021619,2]
[315064355,1708800647716,-500.0,0.00021619,2]
[315064356,1708800647726,-1467.89,0.00021619,2]
[315064357,1708800647735,-819.25,0.00021619,2]
[315064358,1708800647744,-1457.43,0.00021619,2]
[315064359,1708800647754,-500.0,0.00021642,2]
[315064360,1708800647763,-210.65235539,0.00021642,2]
[315064361,1708800647772,-500.0,0.00021642,2]
[315064362,1708800647781,-500.0,0.00021642,2]
[315064363,1708800647791,-500.0,0.00021642,2]
[315064364,1708800647800,-500.0,0.00021642,2]
[315064365,1708800647810,-500.0,0.00021642,2]
[315064366,1708800647819,-500.0,0.00021642,2]
[315064367,1708800647828,-315.27547034,0.00021642,2]
[315064368,1708800647838,-500.0,0.00021642,2]
[315064369,1708800647848,-500.0,0.00021642,2]
[315064370,1708800647857,-500.0,0.00021642,2]
[315064371,1708800647866,-500.0,0.00021642,2]
[315064372,1708800647876,-500.0,0.00021642,2]
[315064373,1708800647886,-500.0,0.00021642,2]
[315064374,1708800647896,-500.0,0.00021642,2]
[315064375,1708800647906,-500.0,0.00021642,2]
[315064376,1708800647916,-500.0,0.00021642,2]
[315064377,1708800647926,-500.0,0.00021642,2]
[315064378,1708800647936,-500.0,0.00021642,2]
[315064379,1708800647946,-500.0,0.00021642,2]
[315064380,1708800647955,-650.46,0.00021643,2]
[315064381,1708800647964,-500.0,0.00021643,2]
[315064382,1708800647974,-515.24,0.00021643,2]
[315064383,1708800647983,-500.0,0.00021643,2]
[315064384,1708800647993,-811.09,0.00021643,2]
[315064385,1708800648004,-6417.31,0.00021643,2]
[315064386,1708800648013,-2303.42,0.00021643,2]
[315064387,1708800648023,-597.64,0.00021643,2]
[315064388,1708800648033,-1079.68,0.00021643,2]
[315064389,1708800648042,-972.69,0.00021643,2]
[315064390,1708800648051,-6369.84,0.00021643,2]
[315064391,1708800648062,-719.51,0.00021643,2]
[315064392,1708800648072,-500.0,0.00021643,2]
[315064393,1708800648082,-508.79,0.00021643,2]
[315064394,1708800648093,-615.07,0.00021643,2]
[315064395,1708800648105,-728.44,0.00021643,2]
[315064396,1708800648114,-500.0,0.00021643,2]
[315064397,1708800648124,-736.18,0.00021643,2]
[315064398,1708800648134,-3669.97,0.00021643,2]
[315064399,1708800648145,-5846.78,0.00021643,2]
[315064400,1708800648154,-832.11,0.00021643,2]
[315064401,1708800648164,-1298.43,0.00021643,2]
[315064402,1708800648175,-2000.0,0.000217,4]
[315064403,1708800648184,-1862.95184529,0.00021713,2]
[315064404,1708800648195,-5000.0,0.00021743,2]
[315064405,1708800648204,-620.88798404,0.00021787,2]
[315064406,1708800648215,-300.0,0.00021788,2]
[315064407,1708800648224,-7859.6,0.00021791,2]
[315064408,1708800648235,-582.0,0.000218,2]
[315064409,1708800648245,-1000.0,0.00021816,2]
[315064410,1708800648255,-1538.5,0.00021887,2]
[315064411,1708800648265,-1216.98,0.00021887,2]
[315064412,1708800648276,-1200.87,0.00021887,2]
[315064413,1708800648286,-200.5294442,0.0002189,2]
[315064414,1708800648296,-200.5294442,0.0002189,2]
[315064415,1708800648308,-200.5294442,0.0002189,2]
[315064416,1708800648319,-200.5294442,0.0002189,2]
[315064417,1708800648328,-200.5294442,0.0002189,2]
[315064418,1708800648338,-500.0,0.00021893,2]
[315064419,1708800648348,-701.74,0.00021893,2]
[315064420,1708800648359,-500.0,0.00021893,2]
[315064421,1708800648368,-500.0,0.00021893,2]
[315064422,1708800648379,-1404.72,0.00021893,2]
[315064423,1708800648388,-500.0,0.00021893,2]
[315064424,1708800648398,-1467.89,0.00021893,2]
[315064425,1708800648407,-819.25,0.00021893,2]
[315064426,1708800648416,-1457.43,0.00021893,2]
[315064427,1708800648425,-255.53016185,0.000219,4]
[315064428,1708800648435,-1000.0,0.00021901,2]
[315064429,1708800648445,-1000.0,0.00021917,2]
[315064430,1708800648453,-295.44553204,0.00021917,2]
[315064431,1708800648463,-4940.06355353,0.00021917,2]
[315064432,1708800648472,-244.82214308,0.00021917,2]
[315064433,1708800648481,-2952.38532779,0.00021917,2]
[315064434,1708800648491,-650.46,0.00021917,2]
[315064435,1708800648501,-500.0,0.00021917,2]
[315064436,1708800648511,-5000.0,0.00021917,2]
[315064437,1708800648521,-840.89686995,0.00021917,2]
[315064438,1708800648530,-515.24,0.00021917,2]
[315064439,1708800648539,-8835.07323303,0.00021917,2]
[315064440,1708800648549,-500.0,0.00021917,2]
[315064441,1708800648558,-811.09,0.00021917,2]
[315064442,1708800648567,-6417.31,0.00021917,2]
[315064443,1708800648576,-2303.42,0.00021917,2]
[315064444,1708800648586,-597.64,0.00021917,2]
[315064445,1708800648595,-220.596274,0.00021917,2]
[315064446,1708800648604,-151.0,0.00021917,2]
[315064447,1708800648613,-1079.68,0.00021917,2]
[315064448,1708800648623,-972.69,0.00021917,2]
[315064449,1708800648632,-6369.84,0.00021917,2]
[315064450,1708800648644,-719.51,0.00021917,2]
[315064451,1708800648653,-500.0,0.00021917,2]
[315064452,1708800648662,-508.79,0.00021917,2]
[315064453,1708800648673,-615.07,0.00021917,2]
[315064454,1708800648682,-728.44,0.00021917,2]
[315064455,1708800648691,-500.0,0.00021917,2]
[315064456,1708800648700,-736.18,0.00021917,2]
[315064457,1708800648709,-1095.72107871,0.00021917,2]
[315064458,1708800648719,-3669.97,0.00021917,2]
[315064459,1708800648729,-5846.78,0.00021917,2]
[315064460,1708800648739,-832.11,0.00021917,2]
[315064461,1708800648748,-1298.43,0.00021917,2]
[315064462,1708800648758,-706.471977,0.00021918,2]
[315064463,1708800648767,-10000.0,0.00021918,2]
[315064464,1708800648776,-446.942332,0.00021918,2]
[315064465,1708800648786,-446.942332,0.00021918,2]
[315064466,1708800648795,-50000.0,0.00021923,2]
[315064467,1708800648805,-387.051633,0.00021923,2]
[315064468,1708800648814,-387.051633,0.00021923,2]
[315064469,1708800648824,-4010.133591,0.00021923,2]
[315064470,1708800648834,-4010.133591,0.00021923,2]
[315064471,1708800648844,-1000.0,0.00021954,2]
[315064472,1708800648853,-150.0,0.00021955,2]
[315064473,1708800648863,-1000.0,0.00021971,2]
[315064474,1708800648872,-1000.0,0.00021989,2]
[315064475,1708800648881,-300.0,0.00021998,2]
[315064476,1708800648891,-753.5931549,0.00022,2]
[315064477,1708800648900,-234.2824,0.0002201,2]
[315064478,1708800648909,-50000.0,0.00022063,2]
[315064479,1708800648918,-151.0,0.00022063,2]
[315064480,1708800648928,-151.0,0.00022063,2]
[315064481,1708800648937,-151.0,0.00022063,2]
[315064482,1708800648949,-7859.6,0.00022065,2]
[315064483,1708800648958,-1000.0,0.00022066,2]
[315064484,1708800648969,-50000.0,0.0002207,2]
[315064485,1708800648980,-50000.0,0.0002207,2]
[315064486,1708800648990,-165.879963,0.000221,2]
[315064487,1708800649001,-5640.05153192,0.00022121,2]
[315064488,1708800649010,-151.0,0.00022129,2]
[315064489,1708800649019,-151.0,0.00022129,2]
[315064490,1708800649029,-50000.0,0.0002214,2]
[315064491,1708800649038,-151.0,0.0002214,2]
[315064492,1708800649047,-50000.0,0.0002215,2]
[315064493,1708800649056,-446.942332,0.0002215,2]
[315064494,1708800649065,-446.942332,0.0002215,2]
[315064495,1708800649075,-1538.5,0.00022161,2]
[315064496,1708800649084,-1216.98,0.00022161,2]
[315064497,1708800649093,-1200.87,0.00022161,2]
[315064498,1708800649103,-500.0,0.00022167,2]
[315064499,1708800649112,-701.74,0.00022167,2]
[315064500,1708800649121,-500.0,0.00022167,2]
[315064501,1708800649130,-500.0,0.00022167,2]
[315064502,1708800649139,-1404.72,0.00022167,2]
[315064503,1708800649149,-500.0,0.00022167,2]
[315064504,1708800649158,-1467.89,0.00022167,2]
[315064505,1708800649167,-819.25,0.00022167,2]
[315064506,1708800649177,-1457.43,0.00022167,2]
[315064507,1708800649186,-650.46,0.00022191,2]
[315064508,1708800649197,-500.0,0.00022191,2]
[315064509,1708800649206,-151.0,0.00022191,2]
[315064510,1708800649215,-515.24,0.00022191,2]
[315064511,1708800649225,-500.0,0.00022191,2]
[315064512,1708800649235,-387.051633,0.00022191,2]
[315064513,1708800649245,-387.051633,0.00022191,2]
[315064514,1708800649255,-4010.133591,0.00022191,2]
[315064515,1708800649266,-626.5591099,0.00022191,2]
[315064516,1708800649347,-184.5308901,0.00022191,2]
[315064517,1708800649358,-4010.133591,0.00022191,2]
[315064518,1708800649368,-6417.31,0.00022191,2]
[315064519,1708800649378,-2303.42,0.00022191,2]
[315064520,1708800649388,-597.64,0.00022191,2]
[315064521,1708800649398,-1079.68,0.00022191,2]
[315064522,1708800649408,-972.69,0.00022191,2]
[315064523,1708800649417,-6369.84,0.00022191,2]
[315064524,1708800649426,-719.51,0.00022191,2]
[315064525,1708800649435,-500.0,0.00022191,2]
[315064526,1708800649445,-508.79,0.00022191,2]
[315064527,1708800649454,-615.07,0.00022191,2]
[315064528,1708800649463,-728.44,0.00022191,2]
[315064529,1708800649472,-500.0,0.00022191,2]
[315064530,1708800649482,-736.18,0.00022191,2]
[315064531,1708800649491,-3669.97,0.00022191,2]
[315064532,1708800649502,-5846.78,0.00022191,2]
[315064533,1708800649512,-832.11,0.00022191,2]
[315064534,1708800649522,-1298.43,0.00022191,2]
[315064535,1708800649533,-300.0,0.00022208,2]
[315064536,1708800649545,-502.048253,0.00022245,2]
[315064537,1708800649556,-1856.271128,0.00022245,2]
[315064538,1708800649566,-449.453006,0.00022245,2]
[315064539,1708800649576,-674.179509,0.00022245,2]
[315064540,1708800649585,-309.926044,0.00022245,2]
[315064541,1708800649595,-198.877478,0.00022251,2]